[Event "Titled Tuesday Blitz November 07 Early 2023"]
[White "Sharapov, Evgeny"]
[Black "Bacrot, Etienne"]
[WhiteFideId "14103133"]
[BlackFideId "605506"]
[WhiteElo "2611"]
[BlackElo "2809"]
[Result "0-1"]
[Round "8"]
[TimeControl "180+1"]
[Date "2023.11.07"]
[WhiteClock "0:01:03"]
[BlackClock "0:00:21"]
[Board "60"]

1. e4 {[%clk 0:02:59]}  c5 {[%clk 0:02:59]} 2. Nf3 {[%clk 0:02:59]}  d6 {[%clk 0:03:00]} 3. d4 {[%clk 0:02:59]}  cxd4 {[%clk 0:03:01]} 4. Nxd4 {[%clk 0:03:00]}  Nf6 {[%clk 0:03:01]} 5. Nc3 {[%clk 0:03:00]}  Nc6 {[%clk 0:03:02]} 6. g3 {[%clk 0:03:00]}  g6 {[%clk 0:03:01]} 7. Bg2 {[%clk 0:03:00]}  Bd7 {[%clk 0:03:02]} 8. Nde2 {[%clk 0:03:00]}  Bg7 {[%clk 0:03:02]} 9. O-O {[%clk 0:03:00]}  O-O {[%clk 0:03:02]} 10. Nd5 {[%clk 0:03:00]}  Rc8 {[%clk 0:03:01]} 11. a4 {[%clk 0:02:59]}  Nxd5 {[%clk 0:02:49]} 12. exd5 {[%clk 0:02:59]}  Ne5 {[%clk 0:02:49]} 13. c3 {[%clk 0:02:59]}  a6 {[%clk 0:02:32]} 14. Nd4 {[%clk 0:02:57]}  Bg4 {[%clk 0:02:25]} 15. f3 {[%clk 0:02:55]}  Bd7 {[%clk 0:02:25]} 16. f4 {[%clk 0:02:53]}  Nc4 {[%clk 0:02:23]} 17. Kh1 {[%clk 0:02:50]}  b5 {[%clk 0:02:21]} 18. axb5 {[%clk 0:02:50]}  axb5 {[%clk 0:02:13]} 19. Re1 {[%clk 0:02:44]}  Rc7 {[%clk 0:02:09]} 20. Qe2 {[%clk 0:02:35]}  Bxd4 {[%clk 0:01:58]} 21. cxd4 {[%clk 0:02:33]}  Qc8 {[%clk 0:01:55]} 22. b3 {[%clk 0:02:26]}  Nb6 {[%clk 0:01:55]} 23. Bd2 {[%clk 0:02:24]}  Bh3 {[%clk 0:01:38]} 24. Rac1 {[%clk 0:02:20]}  Bxg2+ {[%clk 0:01:34]} 25. Qxg2 {[%clk 0:02:18]}  Rxc1 {[%clk 0:01:34]} 26. Rxc1 {[%clk 0:02:18]}  Qf5 {[%clk 0:01:34]} 27. g4 {[%clk 0:02:00]}  Qxd5 {[%clk 0:01:31]} 28. Qxd5 {[%clk 0:01:59]}  Nxd5 {[%clk 0:01:32]} 29. f5 {[%clk 0:01:57]}  Ra8 {[%clk 0:01:30]} 30. Bh6 {[%clk 0:01:53]}  f6 {[%clk 0:01:28]} 31. h4 {[%clk 0:01:49]}  Kf7 {[%clk 0:01:29]} 32. Kh2 {[%clk 0:01:41]}  b4 {[%clk 0:01:20]} 33. Rc4 {[%clk 0:01:36]}  Rg8 {[%clk 0:01:11]} 34. Kh3 {[%clk 0:01:32]}  gxf5 {[%clk 0:00:52]} 35. gxf5 {[%clk 0:01:31]}  e6 {[%clk 0:00:50]} 36. fxe6+ {[%clk 0:01:23]}  Kxe6 {[%clk 0:00:51]} 37. Rc6 {[%clk 0:01:19]}  Ra8 {[%clk 0:00:41]} 38. Kg4 {[%clk 0:01:17]}  f5+ {[%clk 0:00:35]} 39. Kh5 {[%clk 0:01:13]}  Nf6+ {[%clk 0:00:32]} 40. Kg5 {[%clk 0:01:12]}  Rg8+ {[%clk 0:00:32]} 41. Kf4 {[%clk 0:01:11]}  Rg4+ {[%clk 0:00:32]} 42. Kf3 {[%clk 0:01:08]}  Rxh4 {[%clk 0:00:28]} 43. Bf4 {[%clk 0:01:08]}  Ne4 {[%clk 0:00:26]} 44. Rb6 {[%clk 0:01:05]}  Rh3+ {[%clk 0:00:25]} 45. Kg2 {[%clk 0:01:03]}  Rxb3 {[%clk 0:00:25]} 46. Rb7 {[%clk 0:01:03]}  Kd5 {[%clk 0:00:24]} 47. Rxh7 {[%clk 0:01:03]}  Kxd4 {[%clk 0:00:23]} 48. Rf7 {[%clk 0:01:03]}  Rb2+ {[%clk 0:00:22]} 49. Kf3 {[%clk 0:01:03]}  Rf2# {[%clk 0:00:21]} 0-1


[Site "https://www.chess.com"]

[Event "Titled Tuesday Blitz November 07 Early 2023"]
[White "Szpar, Milosz"]
[Black "Kononenko, Dmitry"]
[WhiteFideId "1184989"]
[BlackFideId "14113538"]
[WhiteElo "2796"]
[BlackElo "2606"]
[Result "1-0"]
[Round "8"]
[TimeControl "180+1"]
[Date "2023.11.07"]
[WhiteClock "0:01:14"]
[BlackClock "0:01:15"]
[Board "61"]

1. e4 {[%clk 0:03:00]}  c6 {[%clk 0:02:59]} 2. d4 {[%clk 0:03:00]}  d5 {[%clk 0:03:00]} 3. e5 {[%clk 0:03:01]}  Bf5 {[%clk 0:02:59]} 4. h4 {[%clk 0:03:00]}  h5 {[%clk 0:02:59]} 5. c4 {[%clk 0:02:58]}  e6 {[%clk 0:02:59]} 6. Nc3 {[%clk 0:02:57]}  Bb4 {[%clk 0:02:57]} 7. Qb3 {[%clk 0:02:56]}  Bxc3+ {[%clk 0:02:52]} 8. bxc3 {[%clk 0:02:55]}  Qc7 {[%clk 0:02:49]} 9. Ba3 {[%clk 0:02:54]}  Ne7 {[%clk 0:02:48]} 10. Nf3 {[%clk 0:02:48]}  O-O {[%clk 0:02:46]} 11. Bd6 {[%clk 0:02:43]}  Qd7 {[%clk 0:02:45]} 12. Be2 {[%clk 0:02:40]}  Rd8 {[%clk 0:02:38]} 13. c5 {[%clk 0:02:32]}  Nc8 {[%clk 0:02:27]} 14. Ng5 {[%clk 0:02:28]}  Bg6 {[%clk 0:02:25]} 15. g4 {[%clk 0:02:26]}  hxg4 {[%clk 0:02:13]} 16. h5 {[%clk 0:02:26]}  Bf5 {[%clk 0:02:11]} 17. h6 {[%clk 0:02:26]}  gxh6 {[%clk 0:02:09]} 18. Rxh6 {[%clk 0:02:26]}  Kg7 {[%clk 0:02:08]} 19. Rf6 {[%clk 0:02:24]}  Nxd6 {[%clk 0:01:54]} 20. cxd6 {[%clk 0:02:23]}  Bg6 {[%clk 0:01:54]} 21. Bxg4 {[%clk 0:02:15]}  Qe8 {[%clk 0:01:53]} 22. Bxe6 {[%clk 0:02:09]}  Nd7 {[%clk 0:01:49]} 23. Bxf7 {[%clk 0:02:02]}  Qxf7 {[%clk 0:01:38]} 24. Nxf7 {[%clk 0:01:48]}  Bxf7 {[%clk 0:01:38]} 25. Rf4 {[%clk 0:01:47]}  b5 {[%clk 0:01:34]} 26. Kd2 {[%clk 0:01:46]}  Rg8 {[%clk 0:01:29]} 27. Rg1+ {[%clk 0:01:45]}  Kf8 {[%clk 0:01:29]} 28. e6 {[%clk 0:01:41]}  Rxg1 {[%clk 0:01:29]} 29. Rxf7+ {[%clk 0:01:37]}  Kg8 {[%clk 0:01:29]} 30. Rxd7 {[%clk 0:01:29]}  Rf8 {[%clk 0:01:29]} 31. Rf7 {[%clk 0:01:28]}  Rxf7 {[%clk 0:01:29]} 32. exf7+ {[%clk 0:01:28]}  Kxf7 {[%clk 0:01:29]} 33. Qa3 {[%clk 0:01:28]}  Ke6 {[%clk 0:01:29]} 34. Qxa7 {[%clk 0:01:24]}  Kxd6 {[%clk 0:01:29]} 35. Qc5+ {[%clk 0:01:25]}  Kd7 {[%clk 0:01:29]} 36. a3 {[%clk 0:01:21]}  Ra1 {[%clk 0:01:23]} 37. Ke3 {[%clk 0:01:20]}  Re1+ {[%clk 0:01:23]} 38. Kf4 {[%clk 0:01:20]}  Re4+ {[%clk 0:01:22]} 39. Kf5 {[%clk 0:01:20]}  Re1 {[%clk 0:01:21]} 40. f4 {[%clk 0:01:20]}  Rg1 {[%clk 0:01:20]} 41. Kf6 {[%clk 0:01:19]}  Rf1 {[%clk 0:01:20]} 42. Qe7+ {[%clk 0:01:18]}  Kc8 {[%clk 0:01:20]} 43. f5 {[%clk 0:01:19]}  Rf3 {[%clk 0:01:20]} 44. Ke6 {[%clk 0:01:17]}  Rxc3 {[%clk 0:01:19]} 45. Kd6 {[%clk 0:01:17]}  Kb8 {[%clk 0:01:19]} 46. f6 {[%clk 0:01:18]}  Rxa3 {[%clk 0:01:17]} 47. f7 {[%clk 0:01:17]}  Rf3 {[%clk 0:01:17]} 48. Kxc6 {[%clk 0:01:15]}  b4 {[%clk 0:01:15]} 49. Qb7# {[%clk 0:01:14]} 1-0


[Site "https://www.chess.com"]

[Event "Titled Tuesday Blitz November 07 Early 2023"]
[White "Herzog2012"]
[Black "elprimo2012mortis"]
[WhiteElo "2583"]
[BlackElo "2776"]
[Result "0-1"]
[Round "8"]
[TimeControl "180+1"]
[Date "2023.11.07"]
[WhiteClock "0:00:00"]
[BlackClock "0:01:37"]
[Board "63"]

1. e4 {[%clk 0:03:00]}  c6 {[%clk 0:03:00]} 2. d4 {[%clk 0:02:57]}  d5 {[%clk 0:03:01]} 3. Nc3 {[%clk 0:02:50]}  dxe4 {[%clk 0:03:01]} 4. Nxe4 {[%clk 0:02:51]}  Nf6 {[%clk 0:03:01]} 5. Nxf6+ {[%clk 0:02:49]}  exf6 {[%clk 0:03:02]} 6. c3 {[%clk 0:02:49]}  Bd6 {[%clk 0:03:03]} 7. Bd3 {[%clk 0:02:48]}  O-O {[%clk 0:03:03]} 8. Qc2 {[%clk 0:02:48]}  Re8+ {[%clk 0:03:04]} 9. Ne2 {[%clk 0:02:46]}  h5 {[%clk 0:03:04]} 10. O-O {[%clk 0:02:46]}  h4 {[%clk 0:03:04]} 11. h3 {[%clk 0:02:46]}  Nd7 {[%clk 0:03:03]} 12. Be3 {[%clk 0:02:45]}  Nf8 {[%clk 0:03:02]} 13. c4 {[%clk 0:02:45]}  Bd7 {[%clk 0:02:51]} 14. Rad1 {[%clk 0:02:36]}  Rc8 {[%clk 0:02:49]} 15. Qc1 {[%clk 0:02:25]}  Qa5 {[%clk 0:02:46]} 16. Bf4 {[%clk 0:02:10]}  Bxf4 {[%clk 0:02:38]} 17. Nxf4 {[%clk 0:01:45]}  Qxa2 {[%clk 0:02:37]} 18. Qc3 {[%clk 0:01:37]}  Qa6 {[%clk 0:02:25]} 19. c5 {[%clk 0:01:27]}  b5 {[%clk 0:02:25]} 20. d5 {[%clk 0:01:14]}  cxd5 {[%clk 0:02:25]} 21. Nxd5 {[%clk 0:01:10]}  Qc6 {[%clk 0:02:24]} 22. b4 {[%clk 0:01:05]}  a5 {[%clk 0:02:24]} 23. Nb6 {[%clk 0:01:01]}  Qxb6 {[%clk 0:02:23]} 24. cxb6 {[%clk 0:00:52]}  Rxc3 {[%clk 0:02:24]} 25. bxa5 {[%clk 0:00:52]}  Ra3 {[%clk 0:02:18]} 26. Rfe1 {[%clk 0:00:09]}  Rb8 {[%clk 0:02:08]} 27. Ra1 {[%clk 0:00:03]}  Rxd3 {[%clk 0:02:07]} 28. a6 {[%clk 0:00:02]}  Bc6 {[%clk 0:01:45]} 29. b7 {[%clk 0:00:02]}  Bxb7 {[%clk 0:01:37]} 30. axb7 {[%clk 0:00:03]}  Rxb7 {[%clk 0:01:38]} 31. Re8 {[%clk 0:00:04]}  b4 {[%clk 0:01:36]} 32. Raa8 {[%clk 0:00:02]}  b3 {[%clk 0:01:37]} 33. Rxf8+ {[%clk 0:00:03]}  Kh7 {[%clk 0:01:37]} 34. Rh8+ {[%clk 0:00:03]}  Kg6 {[%clk 0:01:37]} 35. Ra1 {[%clk 0:00:02]}  b2 {[%clk 0:01:38]} 36. Rb1 {[%clk 0:00:00]}  Rc3 {[%clk 0:01:37]} 0-1


[Site "https://www.chess.com"]

[Event "Titled Tuesday Blitz November 07 Early 2023"]
[White "Weetik, Vjacheslav"]
[Black "Lewicki, Miroslaw"]
[WhiteFideId "4153472"]
[BlackFideId "1113380"]
[WhiteElo "2767"]
[BlackElo "2592"]
[Result "0-1"]
[Round "8"]
[TimeControl "180+1"]
[Date "2023.11.07"]
[WhiteClock "0:00:03"]
[BlackClock "0:00:11"]
[Board "64"]

1. d4 {[%clk 0:02:55]}  d5 {[%clk 0:02:55]} 2. c4 {[%clk 0:02:55]}  e6 {[%clk 0:02:55]} 3. Nf3 {[%clk 0:02:55]}  Nf6 {[%clk 0:02:54]} 4. g3 {[%clk 0:02:55]}  Be7 {[%clk 0:02:54]} 5. Bg2 {[%clk 0:02:56]}  O-O {[%clk 0:02:54]} 6. O-O {[%clk 0:02:56]}  b6 {[%clk 0:02:54]} 7. cxd5 {[%clk 0:02:56]}  exd5 {[%clk 0:02:53]} 8. Nc3 {[%clk 0:02:57]}  Bb7 {[%clk 0:02:54]} 9. Ne5 {[%clk 0:02:57]}  Nc6 {[%clk 0:02:54]} 10. Qa4 {[%clk 0:02:51]}  Nxe5 {[%clk 0:02:40]} 11. dxe5 {[%clk 0:02:51]}  Nd7 {[%clk 0:02:40]} 12. Nxd5 {[%clk 0:02:48]}  c6 {[%clk 0:02:29]} 13. Nxe7+ {[%clk 0:02:41]}  Qxe7 {[%clk 0:02:30]} 14. f4 {[%clk 0:02:36]}  Nc5 {[%clk 0:02:29]} 15. Qa3 {[%clk 0:02:36]}  Qe6 {[%clk 0:02:23]} 16. Be3 {[%clk 0:02:35]}  Qc4 {[%clk 0:02:19]} 17. Rac1 {[%clk 0:02:31]}  Qxe2 {[%clk 0:02:18]} 18. Bf3 {[%clk 0:02:17]}  Qb5 {[%clk 0:02:11]} 19. Rfe1 {[%clk 0:02:07]}  Ne6 {[%clk 0:01:54]} 20. Red1 {[%clk 0:01:56]}  Rad8 {[%clk 0:01:41]} 21. Rd6 {[%clk 0:01:56]}  Rxd6 {[%clk 0:01:36]} 22. exd6 {[%clk 0:01:56]}  Rd8 {[%clk 0:01:35]} 23. Rd1 {[%clk 0:01:55]}  Ba6 {[%clk 0:01:17]} 24. d7 {[%clk 0:01:42]}  Rxd7 {[%clk 0:01:14]} 25. Rc1 {[%clk 0:01:33]}  Rd3 {[%clk 0:01:10]} 26. Qe7 {[%clk 0:01:32]}  Qxb2 {[%clk 0:00:53]} 27. Re1 {[%clk 0:01:22]}  Qc3 {[%clk 0:00:43]} 28. Qe8+ {[%clk 0:01:22]}  Nf8 {[%clk 0:00:43]} 29. Kf2 {[%clk 0:01:02]}  c5 {[%clk 0:00:43]} 30. Qa8 {[%clk 0:00:44]}  Rd7 {[%clk 0:00:32]} 31. f5 {[%clk 0:00:32]}  Re7 {[%clk 0:00:28]} 32. Qd8 {[%clk 0:00:28]}  Qf6 {[%clk 0:00:19]} 33. Rd1 {[%clk 0:00:18]}  Qb2+ {[%clk 0:00:10]} 34. Rd2 {[%clk 0:00:18]}  Qe5 {[%clk 0:00:11]} 35. Rd3 {[%clk 0:00:03]}  Bxd3 {[%clk 0:00:10]} 36. Qxd3 {[%clk 0:00:04]}  c4 {[%clk 0:00:10]} 37. Qd2 {[%clk 0:00:04]}  c3 {[%clk 0:00:10]} 38. Qd3 {[%clk 0:00:04]}  c2 {[%clk 0:00:10]} 39. Bc1 {[%clk 0:00:04]}  Qe1+ {[%clk 0:00:10]} 40. Kg2 {[%clk 0:00:03]}  Qxc1 {[%clk 0:00:11]} 0-1


[Site "https://www.chess.com"]

[Event "Titled Tuesday Blitz November 07 Early 2023"]
[White "Jaskolka, Tomasz"]
[Black "Hayrapetyan, Hovik"]
[WhiteFideId "1170791"]
[BlackFideId "13302639"]
[WhiteElo "2569"]
[BlackElo "2764"]
[Result "1-0"]
[Round "8"]
[TimeControl "180+1"]
[Date "2023.11.07"]
[WhiteClock "0:00:05"]
[BlackClock "0:00:01"]
[Board "66"]

1. e4 {[%clk 0:03:00]}  c5 {[%clk 0:03:00]} 2. Nf3 {[%clk 0:03:00]}  d6 {[%clk 0:03:00]} 3. Bb5+ {[%clk 0:02:59]}  Nd7 {[%clk 0:02:58]} 4. a4 {[%clk 0:02:59]}  Nf6 {[%clk 0:02:55]} 5. Nc3 {[%clk 0:03:00]}  g6 {[%clk 0:02:53]} 6. a5 {[%clk 0:03:00]}  Bg7 {[%clk 0:02:50]} 7. a6 {[%clk 0:02:59]}  bxa6 {[%clk 0:02:48]} 8. Bxa6 {[%clk 0:02:59]}  Bxa6 {[%clk 0:02:49]} 9. Rxa6 {[%clk 0:02:59]}  Qc8 {[%clk 0:02:46]} 10. Ra3 {[%clk 0:02:56]}  O-O {[%clk 0:02:41]} 11. O-O {[%clk 0:02:57]}  a5 {[%clk 0:02:36]} 12. d3 {[%clk 0:02:55]}  Nb6 {[%clk 0:02:30]} 13. b3 {[%clk 0:02:42]}  Qc6 {[%clk 0:02:11]} 14. Na4 {[%clk 0:02:36]}  Nxa4 {[%clk 0:02:04]} 15. Rxa4 {[%clk 0:02:36]}  Nd7 {[%clk 0:01:44]} 16. Bd2 {[%clk 0:02:25]}  f5 {[%clk 0:01:38]} 17. Qe2 {[%clk 0:02:01]}  f4 {[%clk 0:01:20]} 18. Rxa5 {[%clk 0:01:37]}  Rxa5 {[%clk 0:01:09]} 19. Bxa5 {[%clk 0:01:38]}  h6 {[%clk 0:01:09]} 20. Qd2 {[%clk 0:01:13]}  g5 {[%clk 0:01:02]} 21. Bc3 {[%clk 0:01:13]}  Nf6 {[%clk 0:00:32]} 22. Ra1 {[%clk 0:00:57]}  Ra8 {[%clk 0:00:28]} 23. Qe1 {[%clk 0:00:50]}  g4 {[%clk 0:00:17]} 24. Nh4 {[%clk 0:00:48]}  e6 {[%clk 0:00:18]} 25. Rxa8+ {[%clk 0:00:39]}  Qxa8 {[%clk 0:00:17]} 26. Qa1 {[%clk 0:00:39]}  Qxa1+ {[%clk 0:00:16]} 27. Bxa1 {[%clk 0:00:40]}  Kf7 {[%clk 0:00:16]} 28. h3 {[%clk 0:00:20]}  h5 {[%clk 0:00:14]} 29. hxg4 {[%clk 0:00:20]}  hxg4 {[%clk 0:00:15]} 30. g3 {[%clk 0:00:18]}  f3 {[%clk 0:00:15]} 31. Kf1 {[%clk 0:00:18]}  Nd7 {[%clk 0:00:11]} 32. Bxg7 {[%clk 0:00:18]}  Kxg7 {[%clk 0:00:12]} 33. Ke1 {[%clk 0:00:17]}  Kf6 {[%clk 0:00:09]} 34. Kd2 {[%clk 0:00:18]}  Nb8 {[%clk 0:00:09]} 35. c3 {[%clk 0:00:17]}  Nc6 {[%clk 0:00:09]} 36. Ke3 {[%clk 0:00:17]}  Kg5 {[%clk 0:00:08]} 37. d4 {[%clk 0:00:15]}  Na5 {[%clk 0:00:06]} 38. dxc5 {[%clk 0:00:13]}  dxc5 {[%clk 0:00:05]} 39. b4 {[%clk 0:00:13]}  cxb4 {[%clk 0:00:05]} 40. cxb4 {[%clk 0:00:14]}  Nc6 {[%clk 0:00:06]} 41. b5 {[%clk 0:00:13]}  Ne5 {[%clk 0:00:04]} 42. Kd4 {[%clk 0:00:11]}  Nd7 {[%clk 0:00:05]} 43. e5 {[%clk 0:00:06]}  Kh5 {[%clk 0:00:03]} 44. Ke3 {[%clk 0:00:03]}  Kg5 {[%clk 0:00:03]} 45. Ke4 {[%clk 0:00:04]}  Nb6 {[%clk 0:00:04]} 46. Kd4 {[%clk 0:00:04]}  Nd7 {[%clk 0:00:03]} 47. Ke4 {[%clk 0:00:04]}  Nc5+ {[%clk 0:00:03]} 48. Ke3 {[%clk 0:00:04]}  Na4 {[%clk 0:00:03]} 49. Kd4 {[%clk 0:00:04]}  Kh5 {[%clk 0:00:03]} 50. Kc4 {[%clk 0:00:04]}  Kg5 {[%clk 0:00:02]} 51. Kb4 {[%clk 0:00:04]}  Nb6 {[%clk 0:00:03]} 52. Kc5 {[%clk 0:00:05]}  Na4+ {[%clk 0:00:03]} 53. Kc6 {[%clk 0:00:05]}  Nc3 {[%clk 0:00:02]} 54. b6 {[%clk 0:00:06]}  Ne2 {[%clk 0:00:01]} 55. b7 {[%clk 0:00:06]}  Nd4+ {[%clk 0:00:02]} 56. Kd6 {[%clk 0:00:06]}  Nb5+ {[%clk 0:00:02]} 57. Kxe6 {[%clk 0:00:06]}  Na7 {[%clk 0:00:02]} 58. b8=Q {[%clk 0:00:05]}  Nc6 {[%clk 0:00:01]} 59. Qg8+ {[%clk 0:00:05]} 1-0


[Site "https://www.chess.com"]

[Event "Titled Tuesday Blitz November 07 Early 2023"]
[White "Preotu, Razvan"]
[Black "Kotlyar, Kirill"]
[WhiteFideId "2613280"]
[BlackFideId "24145599"]
[WhiteElo "2724"]
[BlackElo "2551"]
[Result "1-0"]
[Round "8"]
[TimeControl "180+1"]
[Date "2023.11.07"]
[WhiteClock "0:01:05"]
[BlackClock "0:01:25"]
[Board "69"]

1. e4 {[%clk 0:03:00]}  c6 {[%clk 0:02:54]} 2. Nc3 {[%clk 0:03:00]}  d5 {[%clk 0:02:55]} 3. Nf3 {[%clk 0:03:00]}  dxe4 {[%clk 0:02:55]} 4. Nxe4 {[%clk 0:03:01]}  Nf6 {[%clk 0:02:55]} 5. Qe2 {[%clk 0:03:01]}  Nxe4 {[%clk 0:02:55]} 6. Qxe4 {[%clk 0:03:02]}  Nd7 {[%clk 0:02:55]} 7. d4 {[%clk 0:02:57]}  Nf6 {[%clk 0:02:51]} 8. Qf4 {[%clk 0:02:55]}  g6 {[%clk 0:02:45]} 9. Bd3 {[%clk 0:02:51]}  Bg7 {[%clk 0:02:45]} 10. O-O {[%clk 0:02:51]}  O-O {[%clk 0:02:45]} 11. Re1 {[%clk 0:02:52]}  Nd5 {[%clk 0:02:39]} 12. Qh4 {[%clk 0:02:51]}  Re8 {[%clk 0:02:33]} 13. Bh6 {[%clk 0:02:33]}  Bh8 {[%clk 0:02:31]} 14. a3 {[%clk 0:02:19]}  e6 {[%clk 0:02:24]} 15. Bg5 {[%clk 0:02:14]}  Bf6 {[%clk 0:02:19]} 16. c4 {[%clk 0:02:12]}  Bxg5 {[%clk 0:02:13]} 17. Nxg5 {[%clk 0:02:13]}  Nf6 {[%clk 0:02:14]} 18. Re3 {[%clk 0:01:37]}  Kg7 {[%clk 0:02:10]} 19. Rf3 {[%clk 0:01:32]}  h6 {[%clk 0:02:06]} 20. Nxf7 {[%clk 0:01:30]}  Kxf7 {[%clk 0:02:01]} 21. Qxh6 {[%clk 0:01:30]}  Rg8 {[%clk 0:01:58]} 22. Qh7+ {[%clk 0:01:19]}  Kf8 {[%clk 0:01:53]} 23. Bxg6 {[%clk 0:01:04]}  Qe7 {[%clk 0:01:38]} 24. Qh6+ {[%clk 0:01:04]}  Rg7 {[%clk 0:01:38]} 25. Qh8+ {[%clk 0:01:04]}  Rg8 {[%clk 0:01:32]} 26. Rxf6+ {[%clk 0:01:05]}  Qxf6 {[%clk 0:01:25]} 27. Qxf6# {[%clk 0:01:05]} 1-0


[Site "https://www.chess.com"]

[Event "Titled Tuesday Blitz November 07 Early 2023"]
[White "Timerkhanov, Alexander"]
[Black "Czopor, Maciej"]
[WhiteFideId "24177938"]
[BlackFideId "21805431"]
[WhiteElo "2719"]
[BlackElo "2543"]
[Result "0-1"]
[Round "8"]
[TimeControl "180+1"]
[Date "2023.11.07"]
[WhiteClock "0:01:01"]
[BlackClock "0:00:31"]
[Board "71"]

1. d4 {[%clk 0:03:00]}  g6 {[%clk 0:02:50]} 2. h4 {[%clk 0:02:57]}  h5 {[%clk 0:02:50]} 3. e4 {[%clk 0:02:52]}  Bg7 {[%clk 0:02:50]} 4. Nc3 {[%clk 0:02:51]}  c5 {[%clk 0:02:50]} 5. Nf3 {[%clk 0:02:49]}  cxd4 {[%clk 0:02:50]} 6. Nxd4 {[%clk 0:02:50]}  Nc6 {[%clk 0:02:51]} 7. Be3 {[%clk 0:02:48]}  Nf6 {[%clk 0:02:51]} 8. f3 {[%clk 0:02:47]}  d6 {[%clk 0:02:48]} 9. Qd2 {[%clk 0:02:44]}  O-O {[%clk 0:02:39]} 10. O-O-O {[%clk 0:02:42]}  Ne5 {[%clk 0:02:36]} 11. Kb1 {[%clk 0:02:38]}  Bd7 {[%clk 0:02:37]} 12. Bh6 {[%clk 0:02:30]}  Rc8 {[%clk 0:02:34]} 13. Nd5 {[%clk 0:02:25]}  Nxd5 {[%clk 0:02:32]} 14. exd5 {[%clk 0:02:24]}  Qb6 {[%clk 0:02:31]} 15. Bxg7 {[%clk 0:02:17]}  Kxg7 {[%clk 0:02:32]} 16. g4 {[%clk 0:02:11]}  hxg4 {[%clk 0:02:26]} 17. h5 {[%clk 0:02:10]}  Rh8 {[%clk 0:02:26]} 18. h6+ {[%clk 0:02:10]}  Kh7 {[%clk 0:02:24]} 19. fxg4 {[%clk 0:02:09]}  Rc5 {[%clk 0:02:23]} 20. g5 {[%clk 0:02:00]}  Rhc8 {[%clk 0:02:19]} 21. Nb3 {[%clk 0:01:57]}  Rxc2 {[%clk 0:02:06]} 22. Qd4 {[%clk 0:01:47]}  Bf5 {[%clk 0:01:52]} 23. Bd3 {[%clk 0:01:25]}  Qxd4 {[%clk 0:01:02]} 24. Nxd4 {[%clk 0:01:24]}  Nxd3 {[%clk 0:00:59]} 25. Nxf5 {[%clk 0:01:18]}  Rxb2+ {[%clk 0:00:59]} 26. Ka1 {[%clk 0:01:18]}  Rcc2 {[%clk 0:00:58]} 27. Rxd3 {[%clk 0:01:15]}  Rxa2+ {[%clk 0:00:59]} 28. Kb1 {[%clk 0:01:16]}  Rcb2+ {[%clk 0:00:59]} 29. Kc1 {[%clk 0:01:15]}  gxf5 {[%clk 0:01:00]} 30. Re3 {[%clk 0:01:11]}  Re2 {[%clk 0:00:54]} 31. Rxe2 {[%clk 0:01:09]}  Rxe2 {[%clk 0:00:55]} 32. Rf1 {[%clk 0:01:09]}  Kg6 {[%clk 0:00:51]} 33. Rh1 {[%clk 0:01:08]}  Kh7 {[%clk 0:00:48]} 34. Rf1 {[%clk 0:01:09]}  Re5 {[%clk 0:00:47]} 35. Kd2 {[%clk 0:01:08]}  Rxd5+ {[%clk 0:00:47]} 36. Ke3 {[%clk 0:01:08]}  Re5+ {[%clk 0:00:36]} 37. Kf4 {[%clk 0:01:07]}  e6 {[%clk 0:00:36]} 38. Rd1 {[%clk 0:01:06]}  Re4+ {[%clk 0:00:36]} 39. Kf3 {[%clk 0:01:06]}  Rg4 {[%clk 0:00:35]} 40. Rxd6 {[%clk 0:01:03]}  Rxg5 {[%clk 0:00:35]} 41. Rd7 {[%clk 0:01:04]}  Kg6 {[%clk 0:00:35]} 42. h7 {[%clk 0:01:03]}  Rh5 {[%clk 0:00:35]} 43. Rxb7 {[%clk 0:01:03]}  Rxh7 {[%clk 0:00:36]} 44. Rxa7 {[%clk 0:01:04]}  Rh3+ {[%clk 0:00:36]} 45. Kf4 {[%clk 0:01:05]}  Rh4+ {[%clk 0:00:36]} 46. Kf3 {[%clk 0:01:03]}  Kf6 {[%clk 0:00:36]} 47. Ra8 {[%clk 0:01:04]}  Rb4 {[%clk 0:00:35]} 48. Ra5 {[%clk 0:01:04]}  Kg5 {[%clk 0:00:34]} 49. Ra8 {[%clk 0:01:03]}  Rb3+ {[%clk 0:00:35]} 50. Ke2 {[%clk 0:01:04]}  e5 {[%clk 0:00:34]} 51. Ra4 {[%clk 0:01:05]}  e4 {[%clk 0:00:33]} 52. Kf2 {[%clk 0:01:06]}  Kf4 {[%clk 0:00:34]} 53. Ra6 {[%clk 0:01:06]}  Rb2+ {[%clk 0:00:34]} 54. Ke1 {[%clk 0:01:07]}  Kf3 {[%clk 0:00:33]} 55. Rf6 {[%clk 0:01:06]}  f4 {[%clk 0:00:30]} 56. Rxf7 {[%clk 0:01:05]}  Rb1+ {[%clk 0:00:30]} 57. Kd2 {[%clk 0:01:05]}  e3+ {[%clk 0:00:31]} 58. Kc2 {[%clk 0:01:01]}  e2 {[%clk 0:00:31]} 0-1


[Site "https://www.chess.com"]